[Event "Titled Tuesday Blitz April 19 Early 2022"]
[White "Goryachkina, Aleksandra"]
[Black "Grischuk, Alexander"]
[WhiteFideId "4147103"]
[BlackFideId "4126025"]
[WhiteElo "2426"]
[BlackElo "2762"]
[Result "1/2-1/2"]
[Round "02"]
[TimeControl "180+1"]
[Date "2022.04.19"]
[WhiteClock "0:00:03"]
[BlackClock "0:00:06"]

1. e4 {[%clk 0:02:58]}  d5 {[%clk 0:02:57]} 2. exd5 {[%clk 0:02:58]}  Qxd5 {[%clk 0:02:58]} 3. Nc3 {[%clk 0:02:58]}  Qa5 {[%clk 0:02:59]} 4. d4 {[%clk 0:02:57]}  Nf6 {[%clk 0:02:59]} 5. Nf3 {[%clk 0:02:53]}  c6 {[%clk 0:02:59]} 6. Bc4 {[%clk 0:02:51]}  Bf5 {[%clk 0:02:59]} 7. O-O {[%clk 0:02:16]}  Nbd7 {[%clk 0:02:56]} 8. Bf4 {[%clk 0:02:12]}  e6 {[%clk 0:02:55]} 9. Qe2 {[%clk 0:02:09]}  Be7 {[%clk 0:02:46]} 10. h3 {[%clk 0:02:06]}  h6 {[%clk 0:02:39]} 11. Ne5 {[%clk 0:01:55]}  Nxe5 {[%clk 0:02:11]} 12. dxe5 {[%clk 0:01:39]}  Nd7 {[%clk 0:01:47]} 13. Rfd1 {[%clk 0:01:37]}  Rd8 {[%clk 0:01:47]} 14. a3 {[%clk 0:01:21]}  O-O {[%clk 0:01:46]} 15. Bd3 {[%clk 0:01:06]}  Nb6 {[%clk 0:00:23]} 16. Bxf5 {[%clk 0:00:58]}  exf5 {[%clk 0:00:24]} 17. e6 {[%clk 0:00:44]}  Nd5 {[%clk 0:00:23]} 18. Nxd5 {[%clk 0:00:36]}  Rxd5 {[%clk 0:00:23]} 19. exf7+ {[%clk 0:00:33]}  Rxf7 {[%clk 0:00:24]} 20. Qe6 {[%clk 0:00:29]}  Qd8 {[%clk 0:00:17]} 21. Rxd5 {[%clk 0:00:27]}  Qxd5 {[%clk 0:00:18]} 22. Qxd5 {[%clk 0:00:27]}  cxd5 {[%clk 0:00:19]} 23. Rd1 {[%clk 0:00:27]}  Bf6 {[%clk 0:00:19]} 24. c3 {[%clk 0:00:24]}  Rd7 {[%clk 0:00:18]} 25. Be3 {[%clk 0:00:24]}  a6 {[%clk 0:00:18]} 26. Bd4 {[%clk 0:00:23]}  Kf7 {[%clk 0:00:18]} 27. Kf1 {[%clk 0:00:22]}  b5 {[%clk 0:00:16]} 28. Bxf6 {[%clk 0:00:20]}  Kxf6 {[%clk 0:00:17]} 29. Rd4 {[%clk 0:00:18]}  g5 {[%clk 0:00:16]} 30. Ke2 {[%clk 0:00:14]}  Ke5 {[%clk 0:00:15]} 31. a4 {[%clk 0:00:12]}  Rb7 {[%clk 0:00:11]} 32. Rb4 {[%clk 0:00:08]}  Kd6 {[%clk 0:00:11]} 33. axb5 {[%clk 0:00:07]}  axb5 {[%clk 0:00:11]} 34. Kd3 {[%clk 0:00:07]}  Kc5 {[%clk 0:00:12]} 35. h4 {[%clk 0:00:03]}  Re7 {[%clk 0:00:07]} 36. hxg5 {[%clk 0:00:03]}  hxg5 {[%clk 0:00:08]} 37. Rd4 {[%clk 0:00:03]}  Re1 {[%clk 0:00:04]} 38. Kd2 {[%clk 0:00:03]}  Re4 {[%clk 0:00:04]} 39. b4+ {[%clk 0:00:02]}  Kd6 {[%clk 0:00:04]} 40. Kd3 {[%clk 0:00:03]}  Ke5 {[%clk 0:00:03]} 41. g3 {[%clk 0:00:02]}  f4 {[%clk 0:00:02]} 42. g4 {[%clk 0:00:02]}  Rxd4+ {[%clk 0:00:01]} 43. cxd4+ {[%clk 0:00:01]}  Kd6 {[%clk 0:00:02]} 44. f3 {[%clk 0:00:02]}  Ke6 {[%clk 0:00:03]} 45. Kc3 {[%clk 0:00:02]}  Kd6 {[%clk 0:00:04]} 46. Kd3 {[%clk 0:00:02]}  Ke6 {[%clk 0:00:05]} 47. Kc3 {[%clk 0:00:03]}  Kd6 {[%clk 0:00:06]} 48. Kd3 {[%clk 0:00:03]} 1/2-1/2


[Site "https://www.chess.com"]

[Event "Titled Tuesday Blitz April 19 Early 2022"]
[White "Grunberg, Mihai-Lucian"]
[Black "Gorshtein, Ido"]
[WhiteFideId "1204149"]
[BlackFideId "2815532"]
[WhiteElo "2364"]
[BlackElo "2415"]
[Result "0-1"]
[Round "02"]
[TimeControl "180+1"]
[Date "2022.04.19"]
[WhiteClock "0:02:11"]
[BlackClock "0:02:18"]

1. Nf3 {[%clk 0:03:00]}  Nf6 {[%clk 0:02:59]} 2. d4 {[%clk 0:03:01]}  d5 {[%clk 0:02:59]} 3. c4 {[%clk 0:03:02]}  dxc4 {[%clk 0:02:59]} 4. e3 {[%clk 0:03:02]}  e6 {[%clk 0:03:00]} 5. Bxc4 {[%clk 0:03:02]}  a6 {[%clk 0:03:00]} 6. O-O {[%clk 0:03:01]}  b5 {[%clk 0:03:00]} 7. Bd3 {[%clk 0:03:01]}  Bb7 {[%clk 0:03:00]} 8. a4 {[%clk 0:03:01]}  b4 {[%clk 0:02:57]} 9. Nbd2 {[%clk 0:03:00]}  c5 {[%clk 0:02:54]} 10. dxc5 {[%clk 0:02:56]}  Qxd3 {[%clk 0:02:53]} 11. Ne5 {[%clk 0:02:55]}  Qd5 {[%clk 0:02:50]} 12. Ndf3 {[%clk 0:02:51]}  Bxc5 {[%clk 0:02:42]} 13. Qc2 {[%clk 0:02:48]}  b3 {[%clk 0:02:36]} 14. Qc3 {[%clk 0:02:47]}  O-O {[%clk 0:02:32]} 15. Bd2 {[%clk 0:02:37]}  Ne4 {[%clk 0:02:31]} 16. Qa5 {[%clk 0:02:37]}  Be7 {[%clk 0:02:26]} 17. Qxd5 {[%clk 0:02:29]}  Bxd5 {[%clk 0:02:24]} 18. Rac1 {[%clk 0:02:26]}  f6 {[%clk 0:02:21]} 19. Nc4 {[%clk 0:02:22]}  Nd7 {[%clk 0:02:17]} 20. Nd4 {[%clk 0:02:15]}  Rac8 {[%clk 0:02:18]} 21. f3 {[%clk 0:02:11]} 0-1


[Site "https://www.chess.com"]

[Event "Titled Tuesday Blitz April 19 Early 2022"]
[White "Gubajdullin, Alexei"]
[Black "Zemlyanskii, Ivan"]
[WhiteFideId "4141202"]
[BlackFideId "24249971"]
[WhiteElo "2266"]
[BlackElo "1759"]
[Result "1-0"]
[Round "02"]
[TimeControl "180+1"]
[Date "2022.04.19"]
[WhiteClock "0:00:08"]
[BlackClock "0:00:11"]

1. c4 {[%clk 0:03:00]}  e5 {[%clk 0:02:57]} 2. Nc3 {[%clk 0:02:59]}  Bb4 {[%clk 0:02:55]} 3. Nd5 {[%clk 0:02:58]}  Be7 {[%clk 0:02:55]} 4. d4 {[%clk 0:02:55]}  exd4 {[%clk 0:02:47]} 5. Qxd4 {[%clk 0:02:55]}  Nf6 {[%clk 0:02:48]} 6. Nxe7 {[%clk 0:02:54]}  Qxe7 {[%clk 0:02:48]} 7. Bg5 {[%clk 0:02:46]}  Nc6 {[%clk 0:02:43]} 8. Qc3 {[%clk 0:02:11]}  d6 {[%clk 0:02:42]} 9. g3 {[%clk 0:02:02]}  Be6 {[%clk 0:02:14]} 10. Bg2 {[%clk 0:01:59]}  h6 {[%clk 0:02:07]} 11. Bxf6 {[%clk 0:01:58]}  Qxf6 {[%clk 0:02:05]} 12. Qxf6 {[%clk 0:01:58]}  gxf6 {[%clk 0:02:04]} 13. b3 {[%clk 0:01:55]}  O-O-O {[%clk 0:02:03]} 14. Nh3 {[%clk 0:01:54]}  Nd4 {[%clk 0:01:59]} 15. Rd1 {[%clk 0:01:51]}  Nc2+ {[%clk 0:01:51]} 16. Kd2 {[%clk 0:01:51]}  Nb4 {[%clk 0:01:51]} 17. a3 {[%clk 0:01:45]}  Na6 {[%clk 0:01:51]} 18. Kc3 {[%clk 0:01:41]}  Rhe8 {[%clk 0:01:48]} 19. Nf4 {[%clk 0:01:41]}  c6 {[%clk 0:01:48]} 20. b4 {[%clk 0:01:35]}  Nc7 {[%clk 0:01:43]} 21. Rd2 {[%clk 0:01:31]}  Rd7 {[%clk 0:01:33]} 22. Rhd1 {[%clk 0:01:27]}  Red8 {[%clk 0:01:34]} 23. Nh5 {[%clk 0:01:13]}  Ne8 {[%clk 0:01:28]} 24. Rd4 {[%clk 0:01:13]}  Re7 {[%clk 0:01:16]} 25. Rh4 {[%clk 0:01:10]}  d5 {[%clk 0:01:11]} 26. cxd5 {[%clk 0:01:07]}  cxd5 {[%clk 0:01:05]} 27. Nf4 {[%clk 0:01:07]}  Nd6 {[%clk 0:01:05]} 28. Bxd5 {[%clk 0:00:54]}  Rc7+ {[%clk 0:01:02]} 29. Kb2 {[%clk 0:00:49]}  Nc4+ {[%clk 0:00:56]} 30. Ka2 {[%clk 0:00:43]}  Kb8 {[%clk 0:00:44]} 31. e4 {[%clk 0:00:30]}  Nb6 {[%clk 0:00:38]} 32. Rxh6 {[%clk 0:00:27]}  Rc2+ {[%clk 0:00:35]} 33. Kb1 {[%clk 0:00:24]}  Rxf2 {[%clk 0:00:36]} 34. Rxf6 {[%clk 0:00:18]}  Nc4 {[%clk 0:00:27]} 35. Nxe6 {[%clk 0:00:15]}  Nxa3+ {[%clk 0:00:24]} 36. Ka1 {[%clk 0:00:13]}  Nc2+ {[%clk 0:00:19]} 37. Kb2 {[%clk 0:00:13]}  Ne3+ {[%clk 0:00:18]} 38. Rxf2 {[%clk 0:00:10]}  Nxd1+ {[%clk 0:00:18]} 39. Kb3 {[%clk 0:00:10]}  fxe6 {[%clk 0:00:15]} 40. Rd2 {[%clk 0:00:09]}  Ne3 {[%clk 0:00:15]} 41. Rd3 {[%clk 0:00:08]}  Ng4 {[%clk 0:00:13]} 42. Bc4 {[%clk 0:00:07]}  Rxd3+ {[%clk 0:00:12]} 43. Bxd3 {[%clk 0:00:07]}  Nxh2 {[%clk 0:00:13]} 44. Be2 {[%clk 0:00:07]}  Kc7 {[%clk 0:00:14]} 45. Kc4 {[%clk 0:00:07]}  Kd6 {[%clk 0:00:14]} 46. Kd4 {[%clk 0:00:07]}  b6 {[%clk 0:00:12]} 47. b5 {[%clk 0:00:06]}  e5+ {[%clk 0:00:11]} 48. Ke3 {[%clk 0:00:06]}  Kc5 {[%clk 0:00:11]} 49. Kf2 {[%clk 0:00:06]}  Kd4 {[%clk 0:00:10]} 50. Kg2 {[%clk 0:00:06]}  Ke3 {[%clk 0:00:11]} 51. Bh5 {[%clk 0:00:05]}  Kxe4 {[%clk 0:00:10]} 52. Kxh2 {[%clk 0:00:06]}  Kf5 {[%clk 0:00:09]} 53. Kg2 {[%clk 0:00:06]}  Kg5 {[%clk 0:00:09]} 54. Be2 {[%clk 0:00:06]}  Kf5 {[%clk 0:00:10]} 55. Kf2 {[%clk 0:00:07]}  Ke4 {[%clk 0:00:09]} 56. g4 {[%clk 0:00:07]}  Kf4 {[%clk 0:00:09]} 57. Bf3 {[%clk 0:00:07]}  e4 {[%clk 0:00:09]} 58. Be2 {[%clk 0:00:07]}  e3+ {[%clk 0:00:08]} 59. Kg2 {[%clk 0:00:07]}  Ke4 {[%clk 0:00:08]} 60. Kg3 {[%clk 0:00:08]}  Kd4 {[%clk 0:00:08]} 61. Kf3 {[%clk 0:00:08]}  Kc5 {[%clk 0:00:07]} 62. Kxe3 {[%clk 0:00:08]}  a5 {[%clk 0:00:08]} 63. bxa6 {[%clk 0:00:07]}  b5 {[%clk 0:00:08]} 64. a7 {[%clk 0:00:08]}  b4 {[%clk 0:00:09]} 65. a8=Q {[%clk 0:00:08]}  b3 {[%clk 0:00:10]} 66. Qc8+ {[%clk 0:00:08]}  Kb4 {[%clk 0:00:10]} 67. Qb7+ {[%clk 0:00:08]}  Kc3 {[%clk 0:00:11]} 68. Bd3 {[%clk 0:00:08]} 1-0


[Site "https://www.chess.com"]

[Event "Titled Tuesday Blitz April 19 Early 2022"]
[White "Gulevich, Artem"]
[Black "Araujo Filho, Luiz Antonio Coel"]
[WhiteFideId "24119580"]
[BlackFideId "2130661"]
[WhiteElo "2218"]
[BlackElo "2300"]
[Result "1-0"]
[Round "02"]
[TimeControl "180+1"]
[Date "2022.04.19"]
[WhiteClock "0:01:16"]
[BlackClock "0:00:14"]

1. Nf3 {[%clk 0:02:59]}  f5 {[%clk 0:02:42]} 2. b3 {[%clk 0:02:58]}  Nf6 {[%clk 0:02:09]} 3. Bb2 {[%clk 0:02:57]}  g6 {[%clk 0:02:09]} 4. d4 {[%clk 0:02:57]}  Bg7 {[%clk 0:02:08]} 5. e3 {[%clk 0:02:56]}  O-O {[%clk 0:02:07]} 6. Nbd2 {[%clk 0:02:55]}  d6 {[%clk 0:02:06]} 7. Bd3 {[%clk 0:02:54]}  c6 {[%clk 0:02:02]} 8. O-O {[%clk 0:02:53]}  Qe8 {[%clk 0:02:02]} 9. c4 {[%clk 0:02:46]}  Nbd7 {[%clk 0:02:00]} 10. b4 {[%clk 0:02:41]}  e5 {[%clk 0:01:59]} 11. dxe5 {[%clk 0:02:41]}  dxe5 {[%clk 0:01:57]} 12. e4 {[%clk 0:02:41]}  f4 {[%clk 0:01:57]} 13. c5 {[%clk 0:02:40]}  h6 {[%clk 0:01:52]} 14. Nc4 {[%clk 0:02:39]}  Nh7 {[%clk 0:01:47]} 15. Nd6 {[%clk 0:02:38]}  Qe7 {[%clk 0:01:45]} 16. Bc4+ {[%clk 0:02:29]}  Kh8 {[%clk 0:01:44]} 17. Qd3 {[%clk 0:02:24]}  g5 {[%clk 0:01:43]} 18. Rfd1 {[%clk 0:02:24]}  Nhf6 {[%clk 0:01:00]} 19. Nf5 {[%clk 0:02:15]}  Qe8 {[%clk 0:00:56]} 20. Nxg7 {[%clk 0:01:41]}  Kxg7 {[%clk 0:00:55]} 21. a3 {[%clk 0:01:37]}  b6 {[%clk 0:00:37]} 22. cxb6 {[%clk 0:01:33]}  axb6 {[%clk 0:00:37]} 23. Qd6 {[%clk 0:01:27]}  b5 {[%clk 0:00:20]} 24. Qxc6 {[%clk 0:01:22]}  Ra6 {[%clk 0:00:15]} 25. Qxb5 {[%clk 0:01:20]}  Nxe4 {[%clk 0:00:14]} 26. Rxd7+ {[%clk 0:01:16]} 1-0


[Site "https://www.chess.com"]

[Event "Titled Tuesday Blitz April 19 Early 2022"]
[White "Guz, Ari"]
[Black "Palachev, Petr"]
[WhiteFideId "2825759"]
[BlackFideId "24129003"]
[WhiteElo "1913"]
[BlackElo "2339"]
[Result "0-1"]
[Round "02"]
[TimeControl "180+1"]
[Date "2022.04.19"]
[WhiteClock "0:00:15"]
[BlackClock "0:00:33"]

1. e4 {[%clk 0:03:00]}  c5 {[%clk 0:02:59]} 2. Nf3 {[%clk 0:03:01]}  Nc6 {[%clk 0:02:59]} 3. c3 {[%clk 0:03:01]}  Nf6 {[%clk 0:02:59]} 4. e5 {[%clk 0:03:01]}  Nd5 {[%clk 0:03:00]} 5. d4 {[%clk 0:03:02]}  cxd4 {[%clk 0:03:00]} 6. cxd4 {[%clk 0:03:03]}  d6 {[%clk 0:03:01]} 7. Bc4 {[%clk 0:03:03]}  dxe5 {[%clk 0:03:00]} 8. dxe5 {[%clk 0:03:03]}  Ndb4 {[%clk 0:02:59]} 9. Qe2 {[%clk 0:02:19]}  Bf5 {[%clk 0:02:44]} 10. Na3 {[%clk 0:02:11]}  Nd3+ {[%clk 0:02:43]} 11. Kf1 {[%clk 0:02:09]}  e6 {[%clk 0:02:35]} 12. Bg5 {[%clk 0:01:58]}  f6 {[%clk 0:01:44]} 13. exf6 {[%clk 0:01:50]}  gxf6 {[%clk 0:01:45]} 14. Bxe6 {[%clk 0:01:51]}  Bxe6 {[%clk 0:01:40]} 15. Qxe6+ {[%clk 0:01:51]}  Be7 {[%clk 0:01:40]} 16. Bxf6 {[%clk 0:01:45]}  Rf8 {[%clk 0:01:41]} 17. Bxe7 {[%clk 0:01:45]}  Qxe7 {[%clk 0:01:29]} 18. Qxe7+ {[%clk 0:01:36]}  Kxe7 {[%clk 0:01:30]} 19. Nc4 {[%clk 0:01:35]}  b5 {[%clk 0:01:25]} 20. Ne3 {[%clk 0:01:35]}  Rad8 {[%clk 0:01:25]} 21. Ke2 {[%clk 0:01:23]}  Nf4+ {[%clk 0:01:20]} 22. Kf1 {[%clk 0:01:18]}  Nd3 {[%clk 0:01:21]} 23. Rd1 {[%clk 0:00:41]}  Nxb2 {[%clk 0:01:16]} 24. Rxd8 {[%clk 0:00:40]}  Rxd8 {[%clk 0:01:17]} 25. Ke2 {[%clk 0:00:41]}  b4 {[%clk 0:01:12]} 26. Rb1 {[%clk 0:00:37]}  Na4 {[%clk 0:01:08]} 27. Kf1 {[%clk 0:00:28]}  Nc3 {[%clk 0:01:08]} 28. Rb2 {[%clk 0:00:29]}  a5 {[%clk 0:01:06]} 29. g4 {[%clk 0:00:24]}  a4 {[%clk 0:01:07]} 30. h4 {[%clk 0:00:21]}  a3 {[%clk 0:01:07]} 31. Rc2 {[%clk 0:00:20]}  Rd3 {[%clk 0:01:03]} 32. Kg2 {[%clk 0:00:19]}  Kd8 {[%clk 0:00:37]} 33. Nd2 {[%clk 0:00:18]}  Nd4 {[%clk 0:00:36]} 34. Nb3 {[%clk 0:00:13]}  Nxc2 {[%clk 0:00:35]} 35. Nxc2 {[%clk 0:00:14]}  Nxa2 {[%clk 0:00:33]} 36. Kf1 {[%clk 0:00:15]}  Rxb3 {[%clk 0:00:33]} 0-1


[Site "https://www.chess.com"]

[Event "Titled Tuesday Blitz April 19 Early 2022"]
[White "Hasangatin, Ramil"]
[Black "Fedoseev, Vladimir"]
[WhiteFideId "4122160"]
[BlackFideId "24130737"]
[WhiteElo "2375"]
[BlackElo "2726"]
[Result "0-1"]
[Round "02"]
[TimeControl "180+1"]
[Date "2022.04.19"]
[WhiteClock "0:00:15"]
[BlackClock "0:00:43"]

1. e4 {[%clk 0:03:00]}  c6 {[%clk 0:02:57]} 2. Nf3 {[%clk 0:03:00]}  d5 {[%clk 0:02:58]} 3. d3 {[%clk 0:03:00]}  Qc7 {[%clk 0:02:57]} 4. g3 {[%clk 0:03:00]}  e5 {[%clk 0:02:55]} 5. Bg2 {[%clk 0:03:00]}  Nf6 {[%clk 0:02:53]} 6. O-O {[%clk 0:03:00]}  dxe4 {[%clk 0:02:49]} 7. dxe4 {[%clk 0:03:00]}  Bc5 {[%clk 0:02:50]} 8. Qe1 {[%clk 0:02:54]}  O-O {[%clk 0:02:49]} 9. b4 {[%clk 0:02:53]}  Bd6 {[%clk 0:02:42]} 10. Bb2 {[%clk 0:02:51]}  Be6 {[%clk 0:02:39]} 11. Qe2 {[%clk 0:02:32]}  a5 {[%clk 0:02:29]} 12. a3 {[%clk 0:02:32]}  Na6 {[%clk 0:02:14]} 13. c3 {[%clk 0:02:31]}  b5 {[%clk 0:02:00]} 14. Nbd2 {[%clk 0:02:31]}  Rfb8 {[%clk 0:02:00]} 15. Nh4 {[%clk 0:02:08]}  c5 {[%clk 0:01:58]} 16. bxa5 {[%clk 0:01:37]}  c4 {[%clk 0:01:55]} 17. Nf5 {[%clk 0:01:33]}  Nc5 {[%clk 0:01:51]} 18. Nxd6 {[%clk 0:01:25]}  Qxd6 {[%clk 0:01:50]} 19. a4 {[%clk 0:01:00]}  Nxa4 {[%clk 0:01:37]} 20. Ba3 {[%clk 0:01:00]}  Nxc3 {[%clk 0:01:33]} 21. Qe3 {[%clk 0:00:39]}  Qd4 {[%clk 0:01:25]} 22. Qxd4 {[%clk 0:00:19]}  Ne2+ {[%clk 0:01:23]} 23. Kh1 {[%clk 0:00:19]}  Nxd4 {[%clk 0:01:24]} 24. Bd6 {[%clk 0:00:19]}  Rd8 {[%clk 0:01:18]} 25. Bxe5 {[%clk 0:00:19]}  Nc6 {[%clk 0:01:07]} 26. Bxf6 {[%clk 0:00:19]}  gxf6 {[%clk 0:01:05]} 27. e5 {[%clk 0:00:19]}  Rxd2 {[%clk 0:00:53]} 28. Bxc6 {[%clk 0:00:19]}  Bd5+ {[%clk 0:00:50]} 29. Bxd5 {[%clk 0:00:19]}  Rxd5 {[%clk 0:00:50]} 30. a6 {[%clk 0:00:19]}  fxe5 {[%clk 0:00:48]} 31. Rfb1 {[%clk 0:00:16]}  c3 {[%clk 0:00:45]} 32. Rb3 {[%clk 0:00:16]}  Rc5 {[%clk 0:00:44]} 33. Kg2 {[%clk 0:00:15]}  c2 {[%clk 0:00:43]} 0-1


[Site "https://www.chess.com"]

[Event "Titled Tuesday Blitz April 19 Early 2022"]
[White "Horobetz, Graham"]
[Black "Stelmaszyk, Nico"]
[WhiteFideId "2047322"]
[BlackFideId "16200462"]
[WhiteElo "2597"]
[BlackElo "2119"]
[Result "1-0"]
[Round "02"]
[TimeControl "180+1"]
[Date "2022.04.19"]
[WhiteClock "0:00:14"]
[BlackClock "0:00:20"]

1. e4 {[%clk 0:03:00]}  e5 {[%clk 0:03:00]} 2. Nf3 {[%clk 0:03:01]}  Nf6 {[%clk 0:03:00]} 3. d4 {[%clk 0:03:01]}  Nxe4 {[%clk 0:03:01]} 4. Bd3 {[%clk 0:03:01]}  Nc6 {[%clk 0:03:01]} 5. Bxe4 {[%clk 0:02:53]}  d5 {[%clk 0:03:00]} 6. Bd3 {[%clk 0:02:47]}  e4 {[%clk 0:02:56]} 7. Be2 {[%clk 0:02:47]}  exf3 {[%clk 0:02:56]} 8. Bxf3 {[%clk 0:02:48]}  Qe7+ {[%clk 0:02:51]} 9. Be3 {[%clk 0:02:47]}  Qb4+ {[%clk 0:02:49]} 10. Nd2 {[%clk 0:02:37]}  Nxd4 {[%clk 0:02:38]} 11. Bxd5 {[%clk 0:02:37]}  Nf5 {[%clk 0:02:24]} 12. Qf3 {[%clk 0:02:23]}  Bd6 {[%clk 0:02:10]} 13. g4 {[%clk 0:02:12]}  Nxe3 {[%clk 0:01:58]} 14. Qxf7+ {[%clk 0:01:57]}  Kd8 {[%clk 0:01:58]} 15. fxe3 {[%clk 0:01:58]}  Qxg4 {[%clk 0:01:57]} 16. Bf3 {[%clk 0:01:33]}  Qh4+ {[%clk 0:01:48]} 17. Ke2 {[%clk 0:01:33]}  Qf6 {[%clk 0:01:30]} 18. Qxf6+ {[%clk 0:01:18]}  gxf6 {[%clk 0:01:31]} 19. Ne4 {[%clk 0:01:18]}  Be5 {[%clk 0:01:25]} 20. Rad1+ {[%clk 0:01:17]}  Ke7 {[%clk 0:01:24]} 21. c3 {[%clk 0:01:17]}  Bf5 {[%clk 0:01:15]} 22. Nc5 {[%clk 0:01:16]}  Rab8 {[%clk 0:01:10]} 23. Be4 {[%clk 0:01:05]}  Bg4+ {[%clk 0:01:07]} 24. Bf3 {[%clk 0:01:05]}  Bxf3+ {[%clk 0:01:01]} 25. Kxf3 {[%clk 0:01:06]}  b6 {[%clk 0:01:00]} 26. Nd3 {[%clk 0:00:56]}  Rbd8 {[%clk 0:00:59]} 27. Nb4 {[%clk 0:00:56]}  Ke6 {[%clk 0:00:55]} 28. Nd3 {[%clk 0:00:42]}  Rd5 {[%clk 0:00:51]} 29. c4 {[%clk 0:00:38]}  Rd6 {[%clk 0:00:47]} 30. b3 {[%clk 0:00:31]}  Rhd8 {[%clk 0:00:46]} 31. Ke2 {[%clk 0:00:30]}  Rg8 {[%clk 0:00:46]} 32. Rhg1 {[%clk 0:00:28]}  Rxg1 {[%clk 0:00:45]} 33. Rxg1 {[%clk 0:00:29]}  Bxh2 {[%clk 0:00:33]} 34. Rh1 {[%clk 0:00:29]}  Be5 {[%clk 0:00:34]} 35. Rxh7 {[%clk 0:00:29]}  Rd7 {[%clk 0:00:35]} 36. Rh8 {[%clk 0:00:26]}  Kd6 {[%clk 0:00:30]} 37. Re8 {[%clk 0:00:17]}  Re7 {[%clk 0:00:28]} 38. Ra8 {[%clk 0:00:16]}  a5 {[%clk 0:00:28]} 39. Kf3 {[%clk 0:00:17]}  Kc6 {[%clk 0:00:27]} 40. Rg8 {[%clk 0:00:15]}  Rd7 {[%clk 0:00:25]} 41. Ke4 {[%clk 0:00:15]}  Re7 {[%clk 0:00:25]} 42. Kf5 {[%clk 0:00:15]}  Bd6 {[%clk 0:00:25]} 43. e4 {[%clk 0:00:14]}  Rd7 {[%clk 0:00:23]} 44. Rg6 {[%clk 0:00:12]}  Be7 {[%clk 0:00:22]} 45. Ne5+ {[%clk 0:00:13]}  Kd6 {[%clk 0:00:21]} 46. Nxd7 {[%clk 0:00:14]}  Kxd7 {[%clk 0:00:22]} 47. Rg7 {[%clk 0:00:13]}  Kd6 {[%clk 0:00:22]} 48. Rf7 {[%clk 0:00:13]}  Bd8 {[%clk 0:00:22]} 49. Rxf6+ {[%clk 0:00:13]}  Bxf6 {[%clk 0:00:21]} 50. Kxf6 {[%clk 0:00:14]}  Kd7 {[%clk 0:00:20]} 1-0


[Site "https://www.chess.com"]

[Event "Titled Tuesday Blitz April 19 Early 2022"]
[White "Jarocka, Liwia"]
[Black "Garagulya, Konstantin"]
[WhiteFideId "21807558"]
[BlackFideId "4128931"]
[WhiteElo "1896"]
[BlackElo "2329"]
[Result "0-1"]
[Round "02"]
[TimeControl "180+1"]
[Date "2022.04.19"]
[WhiteClock "0:00:17"]
[BlackClock "0:00:20"]

1. e4 {[%clk 0:03:00]}  c5 {[%clk 0:02:55]} 2. Nf3 {[%clk 0:03:00]}  a6 {[%clk 0:02:55]} 3. c4 {[%clk 0:03:00]}  Nc6 {[%clk 0:02:55]} 4. d4 {[%clk 0:02:59]}  cxd4 {[%clk 0:02:55]} 5. Nxd4 {[%clk 0:02:59]}  g6 {[%clk 0:02:56]} 6. Nc3 {[%clk 0:02:58]}  Bg7 {[%clk 0:02:56]} 7. Be3 {[%clk 0:02:59]}  Nf6 {[%clk 0:02:54]} 8. Be2 {[%clk 0:02:58]}  O-O {[%clk 0:02:50]} 9. O-O {[%clk 0:02:58]}  d6 {[%clk 0:02:49]} 10. Rc1 {[%clk 0:02:58]}  Bd7 {[%clk 0:02:50]} 11. a3 {[%clk 0:02:56]}  Rc8 {[%clk 0:02:50]} 12. b4 {[%clk 0:02:53]}  Ne5 {[%clk 0:02:44]} 13. Nd5 {[%clk 0:02:46]}  Nxe4 {[%clk 0:02:29]} 14. Re1 {[%clk 0:02:32]}  Nf6 {[%clk 0:02:18]} 15. f4 {[%clk 0:02:21]}  Neg4 {[%clk 0:02:05]} 16. Nxf6+ {[%clk 0:02:20]}  Nxf6 {[%clk 0:01:44]} 17. Bf3 {[%clk 0:02:20]}  Qc7 {[%clk 0:01:33]} 18. c5 {[%clk 0:02:00]}  dxc5 {[%clk 0:01:20]} 19. Rxc5 {[%clk 0:01:59]}  Qb8 {[%clk 0:01:21]} 20. Nb3 {[%clk 0:01:53]}  Ba4 {[%clk 0:01:19]} 21. Qb1 {[%clk 0:01:48]}  b6 {[%clk 0:01:04]} 22. Rxc8 {[%clk 0:01:40]}  Rxc8 {[%clk 0:01:05]} 23. Nd4 {[%clk 0:01:38]}  e6 {[%clk 0:01:05]} 24. Rc1 {[%clk 0:01:29]}  Nd5 {[%clk 0:01:03]} 25. Bxd5 {[%clk 0:01:26]}  exd5 {[%clk 0:01:03]} 26. g3 {[%clk 0:01:13]}  Rc4 {[%clk 0:01:02]} 27. Nf3 {[%clk 0:00:43]}  Qc7 {[%clk 0:00:49]} 28. h4 {[%clk 0:00:19]}  d4 {[%clk 0:00:42]} 29. Rxc4 {[%clk 0:00:18]}  Qxc4 {[%clk 0:00:42]} 30. Qc1 {[%clk 0:00:18]}  Qxc1+ {[%clk 0:00:35]} 31. Bxc1 {[%clk 0:00:19]}  Kf8 {[%clk 0:00:32]} 32. Kf2 {[%clk 0:00:19]}  Ke7 {[%clk 0:00:32]} 33. Ne5 {[%clk 0:00:19]}  f6 {[%clk 0:00:30]} 34. Nd3 {[%clk 0:00:19]}  Kd6 {[%clk 0:00:30]} 35. Ke2 {[%clk 0:00:19]}  Kd5 {[%clk 0:00:30]} 36. Kd2 {[%clk 0:00:20]}  Bf8 {[%clk 0:00:27]} 37. Nf2 {[%clk 0:00:20]}  a5 {[%clk 0:00:25]} 38. bxa5 {[%clk 0:00:19]}  bxa5 {[%clk 0:00:26]} 39. Bb2 {[%clk 0:00:20]}  Bb5 {[%clk 0:00:24]} 40. Ng4 {[%clk 0:00:19]}  Be7 {[%clk 0:00:24]} 41. Nh6 {[%clk 0:00:19]}  Ke4 {[%clk 0:00:22]} 42. Ng8 {[%clk 0:00:19]}  Bd8 {[%clk 0:00:23]} 43. Bc1 {[%clk 0:00:17]}  Bc4 {[%clk 0:00:21]} 44. Bb2 {[%clk 0:00:17]}  Bxg8 {[%clk 0:00:20]} 0-1


[Site "https://www.chess.com"]

[Event "Titled Tuesday Blitz April 19 Early 2022"]
[White "Johnson, Ben"]
[Black "Suarez Uriel, Adrian"]
[WhiteFideId "2010917"]
[BlackFideId "22230874"]
[WhiteElo "2127"]
[BlackElo "2316"]
[Result "0-1"]
[Round "02"]
[TimeControl "180+1"]
[Date "2022.04.19"]
[WhiteClock "0:00:20"]
[BlackClock "0:02:28"]

1. Nf3 {[%clk 0:03:00]}  Nf6 {[%clk 0:02:59]} 2. c4 {[%clk 0:03:00]}  g6 {[%clk 0:02:59]} 3. b3 {[%clk 0:03:00]}  Bg7 {[%clk 0:03:00]} 4. Bb2 {[%clk 0:03:01]}  O-O {[%clk 0:03:00]} 5. g3 {[%clk 0:03:00]}  b6 {[%clk 0:03:01]} 6. Bg2 {[%clk 0:03:00]}  Bb7 {[%clk 0:03:02]} 7. O-O {[%clk 0:02:58]}  e6 {[%clk 0:03:02]} 8. d3 {[%clk 0:02:48]}  Qe7 {[%clk 0:03:02]} 9. Nbd2 {[%clk 0:02:43]}  c5 {[%clk 0:03:02]} 10. e4 {[%clk 0:02:34]}  d5 {[%clk 0:03:02]} 11. e5 {[%clk 0:02:30]}  Nfd7 {[%clk 0:03:02]} 12. Qe2 {[%clk 0:02:24]}  d4 {[%clk 0:03:01]} 13. Ne4 {[%clk 0:01:50]}  Nxe5 {[%clk 0:02:53]} 14. Nxe5 {[%clk 0:01:41]}  Bxe5 {[%clk 0:02:52]} 15. f4 {[%clk 0:01:41]}  Bg7 {[%clk 0:02:49]} 16. Rae1 {[%clk 0:01:14]}  Nd7 {[%clk 0:02:48]} 17. Bc1 {[%clk 0:01:13]}  Nf6 {[%clk 0:02:40]} 18. Nxf6+ {[%clk 0:01:13]}  Bxf6 {[%clk 0:02:41]} 19. f5 {[%clk 0:01:10]}  Bxg2 {[%clk 0:02:40]} 20. Qxg2 {[%clk 0:01:10]}  Rae8 {[%clk 0:02:36]} 21. fxe6 {[%clk 0:01:02]}  fxe6 {[%clk 0:02:35]} 22. Bf4 {[%clk 0:00:44]}  Bg5 {[%clk 0:02:35]} 23. Bxg5 {[%clk 0:00:36]}  Qxg5 {[%clk 0:02:35]} 24. Rxf8+ {[%clk 0:00:36]}  Rxf8 {[%clk 0:02:34]} 25. h4 {[%clk 0:00:32]}  Qf5 {[%clk 0:02:30]} 26. Re4 {[%clk 0:00:29]}  e5 {[%clk 0:02:29]} 27. g4 {[%clk 0:00:23]}  Qf6 {[%clk 0:02:29]} 28. Qg3 {[%clk 0:00:21]}  Qf1+ {[%clk 0:02:28]} 29. Kh2 {[%clk 0:00:20]}  Rf2+ {[%clk 0:02:28]} 0-1


[Site "https://www.chess.com"]